fUSD/lending_fUSD_20241110
["ID","MTS","AMOUNT","RATE_DAILY","PERIOD"]
[341835685,1731247837838,-150.0,0.000134,2]
[341835686,1731247837847,-762.58,0.000134,2]
[341835687,1731247837856,-150.0,0.000134,2]
[341835688,1731247837866,-150.0,0.000134,2]
[341835689,1731247837875,-150.0,0.000134,2]
[341835690,1731247837884,-432.32,0.000134,2]
[341835691,1731247837893,-300.0,0.000134,2]
[341835692,1731247837903,-362.16,0.000134,2]
[341835693,1731247837913,-150.0,0.000134,2]
[341835694,1731247837922,-150.0,0.000134,2]
[341835696,1731247837931,-150.0,0.000134,2]
[341835698,1731247837942,-762.58,0.000134,2]
[341835700,1731247837962,-432.99,0.000134,2]
[341835702,1731247837973,-362.16,0.000134,2]
[341835704,1731247837982,-150.0,0.000134,2]
[341835705,1731247837992,-150.0,0.000134,2]
[341835707,1731247838002,-300.77,0.000134,2]
[341835708,1731247838012,-762.58,0.000134,2]
[341835709,1731247838022,-432.32,0.000134,2]
[341835710,1731247838032,-432.99,0.000134,2]
[341835711,1731247838043,-171.39670266,0.000134,2]
[341835712,1731247838053,-392.33,0.000134,2]
[341835713,1731247838064,-1000.0,0.000134,2]
[341835714,1731247838075,-171.39670263,0.00013433,2]
[341835715,1731247838084,-171.39670263,0.00013466,2]
[341835716,1731247838093,-150.46,0.00013482,2]
[341835717,1731247838102,-171.39670263,0.00013499,2]
[341835718,1731247838111,-150.0,0.000135,2]
[341835719,1731247838120,-362.16,0.000135,2]
[341835720,1731247838130,-150.0,0.000135,2]
[341835721,1731247838139,-150.0,0.000135,2]
[341835722,1731247838148,-362.16,0.000135,2]
[341835723,1731247838158,-150.0,0.000135,2]
[341835724,1731247838167,-150.0,0.000135,2]
[341835725,1731247838177,-150.0,0.000135,2]
[341835726,1731247838187,-432.32,0.000135,2]
[341835727,1731247838196,-762.58,0.000135,2]
[341835728,1731247838206,-150.0,0.000135,2]
[341835729,1731247838215,-385.96,0.000135,2]
[341835730,1731247838225,-362.16,0.000135,2]
[341835731,1731247838235,-432.99,0.000135,2]
[341835732,1731247838244,-150.0,0.000135,2]
[341835733,1731247838253,-762.58,0.000135,2]
[341835734,1731247838263,-150.0,0.000135,2]
[341835735,1731247838272,-150.0,0.000135,2]
[341835736,1731247838281,-150.0,0.000135,2]
[341835737,1731247838291,-432.32,0.000135,2]
[341835738,1731247838300,-362.16,0.000135,2]
[341835739,1731247838309,-150.0,0.000135,2]
[341835740,1731247838318,-362.16,0.000135,2]
[341835741,1731247838327,-150.0,0.000135,2]
[341835742,1731247838336,-150.0,0.000135,2]
[341835743,1731247838345,-432.32,0.000135,2]
[341835744,1731247838354,-762.58,0.000135,2]
[341835745,1731247838363,-432.99,0.000135,2]
[341835746,1731247838372,-432.99,0.000135,2]
[341835747,1731247838382,-150.0,0.000135,2]
[341835748,1731247838391,-150.0,0.000135,2]
[341835749,1731247838400,-762.58,0.000135,2]
[341835750,1731247838409,-150.0,0.000135,2]
[341835751,1731247838418,-432.32,0.000135,2]
[341835752,1731247838427,-362.16,0.000135,2]
[341835753,1731247838437,-432.99,0.000135,2]
[341835754,1731247838448,-150.0,0.000135,2]
[341835755,1731247838457,-432.99,0.000135,2]
[341835756,1731247838468,-150.0,0.000135,2]
[341835757,1731247838477,-432.99,0.000135,2]
[341835758,1731247838487,-150.0,0.000135,2]
[341835759,1731247838496,-150.0,0.000135,2]
[341835760,1731247838506,-930.1,0.000135,2]
[341835761,1731247838516,-150.0,0.000135,2]
[341835762,1731247838526,-171.39670263,0.00013532,2]
[341835763,1731247838536,-171.39670263,0.00013565,2]
[341835764,1731247838546,-753.798,0.0001359,2]
[341835765,1731247838556,-5000.0,0.0001359,2]
[341835766,1731247838568,-1944.55994,0.00013598,2]
[341835767,1731247838578,-171.39670263,0.00013598,2]
[341835768,1731247838588,-274.80556168,0.00013598,2]
[341835769,1731247838598,-200.0,0.00013598,2]
[341835770,1731247838611,-432.99,0.000136,2]
[341835771,1731247838624,-362.16,0.000136,2]
[341835772,1731247838635,-150.0,0.000136,2]
[341835773,1731247838645,-362.16,0.000136,2]
[341835774,1731247838656,-150.0,0.000136,2]
[341835775,1731247838667,-150.0,0.000136,2]
[341835776,1731247838676,-362.16,0.000136,2]
[341835777,1731247838685,-362.16,0.000136,2]
[341835778,1731247838694,-150.0,0.000136,2]
[341835779,1731247838702,-150.0,0.000136,2]
[341835780,1731247838711,-432.99,0.000136,2]
[341835781,1731247838720,-150.0,0.000136,2]
[341835782,1731247838728,-555.35,0.000136,2]
[341835783,1731247838737,-432.32,0.000136,2]
[341835784,1731247838747,-362.16,0.000136,2]
[341835785,1731247838756,-150.0,0.000136,2]
[341835786,1731247838765,-432.99,0.000136,2]
[341835787,1731247838774,-432.32,0.000136,2]
[341835788,1731247838784,-1524.66,0.000136,2]
[341835789,1731247838793,-300.0,0.000136,2]
[341835790,1731247838802,-362.16,0.000136,2]
[341835791,1731247838812,-150.0,0.000136,2]
[341835792,1731247838821,-362.16,0.000136,2]
[341835793,1731247838831,-855.76,0.000136,2]
[341835794,1731247838839,-432.99,0.000136,2]
[341835795,1731247838848,-150.0,0.000136,2]
[341835796,1731247838857,-432.99,0.000136,2]
[341835797,1731247838866,-362.16,0.000136,2]
[341835798,1731247838875,-2500.0,0.00013606,2]
[341835799,1731247838884,-2500.0,0.00013606,2]
[341835800,1731247838894,-426.22825879,0.00013642,2]
[341835801,1731247838904,-189.54172773,0.0001367,2]
[341835802,1731247838914,-500.0,0.0001367,2]
[341835803,1731247838924,-500.0,0.0001367,2]
[341835804,1731247838935,-500.0,0.0001367,2]
[341835805,1731247838945,-500.0,0.0001367,2]
[341835806,1731247838955,-500.0,0.0001367,2]
[341835807,1731247838964,-500.0,0.0001367,2]
[341835808,1731247838973,-334.15544288,0.0001367,2]
[341835809,1731247838983,-500.0,0.0001367,2]
[341835810,1731247838992,-1000.0,0.00013671,2]
[341835811,1731247839002,-1000.0,0.00013671,2]
[341835812,1731247839012,-1000.0,0.00013671,2]
[341835813,1731247839023,-1000.0,0.00013671,2]
[341835814,1731247839032,-1000.0,0.00013671,2]
[341835815,1731247839042,-1000.0,0.00013671,2]
[341835816,1731247839051,-1000.0,0.00013671,2]
[341835817,1731247839061,-1000.0,0.00013671,2]
[341835818,1731247839071,-1000.0,0.00013671,2]
[341835819,1731247839081,-1000.0,0.00013671,2]
[341835820,1731247839091,-1000.0,0.00013671,2]
[341835821,1731247839100,-1000.0,0.00013671,2]
[341835822,1731247839110,-1000.0,0.00013671,2]
[341835823,1731247839119,-1000.0,0.00013671,2]
[341835824,1731247839128,-1000.0,0.00013671,2]
[341835825,1731247839137,-800.0,0.00013671,2]
[341835826,1731247839147,-1000.0,0.00013671,2]
[341835827,1731247839156,-1000.0,0.00013671,2]
[341835828,1731247839165,-1000.0,0.00013671,2]
[341835829,1731247839176,-1000.0,0.00013671,2]
[341835830,1731247839185,-1000.0,0.00013671,2]
[341835831,1731247839194,-1000.0,0.00013671,2]
[341835832,1731247839203,-1000.0,0.00013671,2]
[341835833,1731247839213,-1000.0,0.00013671,2]
[341835834,1731247839223,-1000.0,0.00013671,2]
[341835835,1731247839233,-1000.0,0.00013671,2]
[341835836,1731247839242,-1000.0,0.00013671,2]
[341835837,1731247839251,-1000.0,0.00013671,2]
[341835839,1731247839261,-1000.0,0.00013671,2]
[341835841,1731247839271,-1000.0,0.00013671,2]
[341835843,1731247839281,-1000.0,0.00013671,2]
[341835845,1731247839291,-1000.0,0.00013671,2]
[341835847,1731247839302,-1000.0,0.00013671,2]
[341835848,1731247839311,-1000.0,0.00013671,2]
[341835849,1731247839321,-1000.0,0.00013671,2]
[341835850,1731247839331,-1000.0,0.00013671,2]
[341835851,1731247839340,-1000.0,0.00013671,2]
[341835852,1731247839350,-1000.0,0.00013671,2]
[341835854,1731247839360,-1000.0,0.00013671,2]
[341835856,1731247839369,-1000.0,0.00013671,2]
[341835858,1731247839378,-1000.0,0.00013671,2]
[341835860,1731247839387,-1000.0,0.00013671,2]
[341835862,1731247839397,-1000.0,0.00013671,2]
[341835865,1731247839407,-1000.0,0.00013671,2]
[341835867,1731247839416,-1000.0,0.00013671,2]
[341835869,1731247839425,-1000.0,0.00013671,2]
[341835871,1731247839437,-1000.0,0.00013671,2]
[341835873,1731247839447,-1000.0,0.00013671,2]
[341835875,1731247839457,-1000.0,0.00013671,2]
[341835877,1731247839467,-1000.0,0.00013671,2]
[341835879,1731247839476,-1000.0,0.00013671,2]
[341835881,1731247839493,-1000.0,0.00013671,2]
[341835883,1731247839502,-1000.0,0.00013671,2]
[341835885,1731247839511,-1000.0,0.00013671,2]
[341835887,1731247839521,-1000.0,0.00013671,2]
[341835889,1731247839533,-1000.0,0.00013671,2]
[341835891,1731247839542,-1000.0,0.00013671,2]
[341835893,1731247839552,-1000.0,0.00013671,2]
[341835896,1731247839561,-1000.0,0.00013671,2]
[341835898,1731247839577,-1000.0,0.00013671,2]
[341835900,1731247839587,-1000.0,0.00013671,2]
[341835902,1731247839596,-1000.0,0.00013671,2]
[341835904,1731247839606,-1000.0,0.00013671,2]
[341835906,1731247839616,-1000.0,0.00013671,2]
[341835908,1731247839625,-1000.0,0.00013671,2]
[341835910,1731247839635,-1000.0,0.00013671,2]
[341835912,1731247839645,-231.0,0.00013671,2]
[341835914,1731247839654,-500.0,0.00013673,2]
[341835916,1731247839664,-500.0,0.00013673,2]
[341835918,1731247839674,-560.2491967,0.00013687,2]
[341835920,1731247839684,-14389.2243122,0.00013687,2]
[341835922,1731247839694,-2496.067895,0.00013687,2]
[341835924,1731247839704,-13627.0,0.0001369,2]
[341835926,1731247839714,-158.792,0.0001369,2]
[341835928,1731247839723,-170.244,0.0001369,2]
[341835929,1731247839733,-5927.0,0.0001369,2]
[341835930,1731247839742,-1159.0,0.0001369,2]
[341835932,1731247839752,-104181.84801107,0.0001369,2]
[341835934,1731247839762,-1000.0,0.00013696,2]
[341835936,1731247839771,-1000.0,0.00013696,2]
[341835938,1731247839781,-252.92742796,0.00013697,2]
[341835940,1731247839791,-5846.85133156,0.00013697,2]
[341835942,1731247839800,-29723.50045849,0.00013697,2]
[341835944,1731247839810,-105022.53474824,0.00013697,2]
[341835947,1731247839820,-1000.0,0.00013697,2]
[341835949,1731247839829,-1000.0,0.00013697,2]
[341835951,1731247839838,-251992.7676309,0.00013698,2]
[341835954,1731247839860,-6704.97635439,0.00013698,2]
[341835956,1731247839871,-8766.36467431,0.00013698,2]
[341835959,1731247839882,-6985.70354915,0.00013698,2]
[341835961,1731247839893,-1857.56402482,0.00013698,2]
[341835963,1731247839904,-1988.69433813,0.00013698,2]
[341835965,1731247839919,-1169.55400002,0.00013698,2]
[341835979,1731247840087,-40932.67506087,0.00013698,2]
[341835981,1731247840100,-1118.94582766,0.00013698,2]
[341835983,1731247840555,-986.11671868,0.00013698,2]
[341835984,1731247840567,-1998.89890938,0.00013698,2]
[341835985,1731247840578,-298.03048544,0.00013698,2]
[341835986,1731247840726,-646.18998075,0.00013698,2]
[341835987,1731247841119,-545.4502034,0.00013687,2]
[341835988,1731247841129,-1091.0,0.0001369,2]
[341835989,1731247841139,-263.94602904,0.00013698,2]
[341835990,1731247841150,-991.75600002,0.00013698,2]
[341835991,1731247841255,-398.685,0.00013698,2]
[341835992,1731247841492,-1290.12665817,0.00013698,2]
[341835993,1731247841512,-798.76409165,0.00013698,2]
[341835994,1731247841523,-520.19672677,0.00013698,2]
[341836012,1731247842504,-1793.25077931,0.00013698,2]
[341836014,1731247842515,-740.90524283,0.00013698,2]
[341836016,1731247842526,-3058.61021431,0.00013698,2]
[341836018,1731247842538,-630.02574642,0.00013698,2]
[341836020,1731247842551,-577.34004555,0.00013698,2]
[341836021,1731247842563,-5546.03241067,0.00013698,2]
[341836022,1731247842576,-31345.02971897,0.00013698,2]
[341836023,1731247842628,-7922.14885156,0.00013698,2]
[341836024,1731247842872,-284.1509994,0.00013698,2]
[341836025,1731247842891,-1560.38672283,0.00013698,2]
[341836030,1731247842950,-1801.80893879,0.00013698,2]
[341836033,1731247842961,-7575.49847537,0.00013698,2]
[341836036,1731247842979,-12117.44769354,0.00013698,2]
[341836038,1731247842990,-18819.2645312,0.00013698,2]
[341836049,1731247843103,-1226.44995,0.00013698,2]
[341836064,1731247845582,-3031.5,0.00013698,2]
[341836065,1731247845593,-6128.6003,0.00013698,2]
[341836066,1731247845603,-7149.750954,0.00013698,2]
[341836067,1731247845612,-2834.4945677,0.00013698,2]
[341836068,1731247845622,-398.575,0.00013698,2]
[341836069,1731247845799,-1947.6250001,0.00013698,2]
[341836082,1731248090457,601.64,0.00010959,2]
[341836084,1731248216175,1187.55,0.00010292,2]
[341836086,1731248343336,164.14,0.00012196,2]
[341836087,1731248358868,1854.65755822,0.00012,2]
[341836088,1731248497672,1000.0,0.00012185,2]
[341836091,1731248558921,-1187.55,0.00012555,2]
[341836092,1731248558947,-444.77588666,0.0001257,2]
[341836093,1731248558972,-980.0,0.0001267,2]
[341836094,1731248558999,-150.98,0.00012679,2]
[341836095,1731248559028,-150.98,0.00012686,2]
[341836096,1731248559054,-150.98,0.00012693,2]
[341836097,1731248559080,-150.98,0.000127,2]
[341836098,1731248559107,-150.98,0.00012707,2]
[341836099,1731248559133,-150.98,0.00012714,2]
[341836100,1731248559162,-150.98,0.00012721,2]
[341836101,1731248559188,-435.45,0.00012728,2]
[341836102,1731248559220,-150.99,0.00012728,2]
[341836103,1731248559251,-1116.19,0.00012728,2]
[341836104,1731248559277,-150.98,0.00012728,2]
[341836105,1731248559308,-150.98,0.00012735,2]
[341836106,1731248559336,-150.98,0.00012742,2]
[341836107,1731248559363,-150.98,0.00012749,2]
[341836108,1731248559391,-150.98,0.00012756,2]
[341836109,1731248559417,-150.98,0.00012763,2]
[341836110,1731248559443,-150.98,0.00012771,2]
[341836111,1731248559470,-150.98,0.00012778,2]
[341836112,1731248559497,-150.98,0.00012785,2]
[341836113,1731248559524,-150.98,0.00012792,2]
[341836114,1731248559550,-150.98,0.00012799,2]
[341836115,1731248559575,-250.0,0.000128,2]
[341836116,1731248559602,-150.98,0.00012806,2]
[341836117,1731248560084,-150.46,0.00012927,2]
[341836118,1731248560112,-150.0,0.00012952,2]
[341836119,1731248560139,-20265.96411334,0.00012952,2]
[341836121,1731248573802,5064.50640014,0.000122,2]
[341836122,1731248573824,5898.77359986,0.000122,2]
[341836123,1731248645277,323.9,0.00027,60]
[341836124,1731248737076,450.0,9e-05,2]
[341836126,1731248827393,-300.0,0.0001266,2]
[341836127,1731248827420,-19700.0,0.00012661,2]
[341836128,1731248831395,-900.06078142,0.00012661,2]
[341836131,1731248907664,1068.79,0.00010627,2]
[341836133,1731248924407,901.12972356,0.0001,2]
[341836145,1731249028314,189.76713771,0.00012311,2]
[341836162,1731249031700,-1084.55103382,0.00012348,2]
[341836163,1731249031720,-1116.19,0.00012348,2]
[341836164,1731249031854,-13028.62570118,0.00012348,2]
[341836165,1731249031864,-3817.84654454,0.00012411,2]
[341836166,1731249031874,-273.09,0.00012511,2]
[341836167,1731249031884,-191.16,0.00012602,2]
[341836168,1731249031893,-250.0,0.00012623,2]
[341836169,1731249031903,-3299.93921858,0.00012661,2]
[341836170,1731249031913,-191.16,0.00012665,2]
[341836171,1731249031925,-250.0,0.00012673,2]
[341836172,1731249031934,-8767.96,0.00012719,2]
[341836173,1731249031944,-270.09,0.00012728,2]
[341836174,1731249031955,-191.16,0.00012728,2]
[341836175,1731249031964,-500.0,0.00012744,2]
[341836176,1731249031974,-1068.79,0.0001289,2]
[341836177,1731249031984,-428.62005279,0.000129,2]
[341836178,1731249031993,-411.1,0.00013011,2]
[341836179,1731249032003,-150.0,0.0001337,2]
[341836180,1731249032012,-150.0,0.000134,2]
[341836181,1731249032021,-2500.0,0.00013498,2]
[341836182,1731249032031,-150.0,0.000135,2]
[341836183,1731249032041,-414.1677,0.00013516,2]
[341836185,1731249032050,-2500.0,0.0001359,2]
[341836187,1731249032059,-5000.0,0.0001359,2]
[341836191,1731249032384,-255.88628408,0.0001359,2]
[341836192,1731249032394,-500.26369163,0.00013597,2]
[341836193,1731249032404,-436.20307847,0.00013597,2]
[341836194,1731249032414,-500.0,0.00013597,2]
[341836195,1731249032423,-455.36466062,0.00013597,2]
[341836196,1731249032434,-632.88612632,0.00013597,2]
[341836197,1731249032443,-719.468,0.00013597,2]
[341836198,1731249032452,-150.0,0.00013597,2]
[341836199,1731249032461,-100000.0,0.00013598,2]
[341836200,1731249032470,-300.0,0.000136,2]
[341836201,1731249032480,-500.0,0.00013673,2]
[341836202,1731249032489,-500.0,0.00013673,2]
[341836203,1731249032498,-426.22825879,0.00013679,2]
[341836204,1731249032507,-29619.76177157,0.0001368,2]
[341836205,1731249032568,-25250.50955456,0.0001368,2]
[341836206,1731249032579,-5646.95028831,0.0001368,2]
[341836221,1731249038167,-3816.4008271,0.0001368,2]
[341836222,1731249038179,-1095.28105404,0.0001368,2]
[341836223,1731249038190,-1019.17253106,0.0001368,2]
[341836225,1731249038201,-7888.25829219,0.0001368,2]
[341836230,1731249038531,-949.999996,0.0001368,2]
[341836231,1731249038546,-1457.17439793,0.0001368,2]
[341836232,1731249038608,-802.0406106,0.0001368,2]
[341836233,1731249038619,-417.6247645,0.0001368,2]
[341836234,1731249038641,-105.88628408,0.0001368,2]
[341836235,1731249038705,-9457.28446278,0.0001368,2]
[341836236,1731249038714,-12376.0683354,0.00013688,2]
[341836237,1731249038723,-2648.8439151,0.00013688,2]
[341836238,1731249038732,-500.0,0.00013689,2]
[341836239,1731249038741,-500.0,0.00013689,2]
[341836240,1731249038750,-500.0,0.00013689,2]
[341836241,1731249038759,-500.0,0.00013689,2]
[341836242,1731249038768,-500.0,0.00013689,2]
[341836243,1731249038777,-500.0,0.00013689,2]
[341836244,1731249038786,-507.5821901,0.00013689,2]
[341836245,1731249038795,-500.0,0.00013689,2]
[341836246,1731249038804,-600.0,0.00013689,2]
[341836247,1731249038813,-50881.40211127,0.0001369,2]
[341836248,1731249039631,-662.43999998,0.0001369,2]
[341836249,1731249039842,-2788.2084016,0.0001369,2]
[341836250,1731249039854,-306.70386345,0.0001369,2]
[341836251,1731249039865,-1281.31499999,0.0001369,2]
[341836252,1731249039876,-366.50257316,0.0001369,2]
[341836253,1731249039887,-7453.50000027,0.0001369,2]
[341836258,1731249042974,-151.94517687,0.00013597,2]
[341836259,1731249042983,-11816.85482313,0.0001369,2]
[341836261,1731249043028,-5600.95956,0.0001369,2]
[341836262,1731249043040,-2821.32622565,0.0001369,2]
[341836263,1731249043184,-2734.13536032,0.0001369,2]
[341836264,1731249043196,-2024.36994541,0.0001369,2]
[341836265,1731249043207,-7475.4838088,0.0001369,2]
[341836266,1731249043219,-5222.00330522,0.0001369,2]
[341836267,1731249043238,-40347.00912626,0.0001369,2]
[341836268,1731249043249,-2023.12683178,0.0001369,2]
[341836269,1731249043260,-60992.46014244,0.0001369,2]
[341836270,1731249043290,-5398.64482225,0.0001369,2]
[341836271,1731249043352,-2479.7327348,0.0001369,2]
[341836272,1731249043364,-14310.98326943,0.0001369,2]
[341836420,1731249045676,-259.01538926,0.0001369,2]
[341836421,1731249045688,-763.11,0.0001369,2]
[341836422,1731249045700,-39915.5,0.0001369,2]
[341836423,1731249045772,-6890.96272049,0.0001369,2]
[341836424,1731249045783,-43535.2933711,0.0001369,2]
[341836425,1731249045837,-1424.67101379,0.0001369,2]
[341836426,1731249045855,-2277.51964967,0.0001369,2]
[341836427,1731249045965,-8348.40604079,0.0001369,2]
[341836430,1731249483641,-172.5,0.00012636,2]
[341836431,1731249483665,-164.89,0.00012674,2]
[341836432,1731249483692,-300.0,0.00012683,2]
[341836433,1731249483717,-23900.0,0.00012684,2]
[341836434,1731249483740,-150.0,0.00012706,2]
[341836435,1731249483763,-1000.0,0.00012732,2]
[341836436,1731249483786,-471.12,0.00012985,2]
[341836437,1731249483809,-944.0,0.00013417,2]
[341836438,1731249483831,-1275.21,0.00013541,2]
[341836439,1731249483853,-1059.1806,0.00013541,2]
[341836440,1731249483874,-558.6427,0.00013541,2]
[341836441,1731249483896,-10698.4567,0.00013579,2]
[341836444,1731249654495,997.24,0.00010694,2]
[341836446,1731249764596,-273.09,0.00012605,2]
[341836447,1731249764620,-250.0,0.00012781,2]
[341836448,1731249764647,-250.0,0.00012812,2]
[341836449,1731249780631,179.47928668,0.00013698,10]
[341836450,1731249796264,-726.91,0.00012958,2]
[341836452,1731249847743,684.06667658,0.00012,2]
[341836453,1731249847766,10000.0,0.00012,2]
[341836454,1731249847787,10000.0,0.00012,2]
[341836455,1731249847808,10000.0,0.00012,2]
[341836456,1731249847830,9810.23286229,0.00012,2]
[341836457,1731249847855,31607.66731384,0.00012,2]
[341836458,1731249847877,10000.0,0.00012,2]
[341836459,1731249847898,10000.0,0.00012,2]
[341836460,1731249847919,10000.0,0.00012,2]
[341836461,1731249847943,10000.0,0.00012,2]
[341836462,1731249847966,10000.0,0.00012,2]
[341836463,1731249847988,10000.0,0.00012,2]
[341836464,1731249848009,10000.0,0.00012,2]
[341836465,1731249848032,10000.0,0.00012,2]
[341836466,1731249848054,10000.0,0.00012,2]
[341836467,1731249848079,10000.0,0.00012,2]
[341836468,1731249848103,10000.0,0.00012,2]
[341836469,1731249848126,10000.0,0.00012,2]
[341836470,1731249848149,10000.0,0.00012,2]
[341836471,1731249848170,10000.0,0.00012,2]
[341836472,1731249848194,10000.0,0.00012,2]
[341836473,1731249848216,10000.0,0.00012,2]
[341836474,1731249848238,10000.0,0.00012,2]
[341836475,1731249848261,10000.0,0.00012,2]
[341836476,1731249848283,10000.0,0.00012,2]
[341836477,1731249848305,10000.0,0.00012,2]
[341836478,1731249848334,79956.04,0.00012,2]
[341836479,1731249848359,197914.02314729,0.00012,2]
[341836491,1731250048937,150.0,0.00010959,2]
[341836492,1731250048958,150.0,0.00010959,2]
[341836493,1731250048980,150.0,0.00010959,2]
[341836494,1731250049002,116.58,0.00010959,2]
[341836506,1731250130922,150.0,0.00010959,2]
[341836507,1731250130947,150.0,0.00010959,2]
[341836508,1731250130969,150.0,0.00010959,2]
[341836509,1731250130993,150.0,0.00010959,2]
[341836510,1731250131017,109.77,0.00010959,2]
[341836518,1731250203329,150.0,0.00010959,2]
[341836519,1731250203524,150.0,0.00010959,2]
[341836520,1731250203751,150.0,0.00010959,2]
[341836521,1731250204074,150.0,0.00010959,2]
[341836522,1731250204551,150.0,0.00010959,2]
[341836523,1731250204759,150.0,0.00010959,2]
[341836524,1731250205256,150.0,0.00010959,2]
[341836525,1731250205463,263.73877583,0.00010959,2]
[341836526,1731250224252,182.34,0.00010959,2]
[341836531,1731250234842,151.95,0.00010959,2]
[341836532,1731250235200,-212.0855016,0.00012437,2]
[341836533,1731250235209,-368.66,0.00012531,2]
[341836534,1731250235218,-6.92328373,0.00012531,2]
[341836535,1731250235284,-7587.55671627,0.00012531,2]
[341836536,1731250235294,-164.31,0.00012537,2]
[341836537,1731250235303,-1224.95,0.00012543,2]
[341836538,1731250235312,-23900.0,0.0001255,2]
[341836539,1731250235321,-20115.21532187,0.00012573,2]
[341836540,1731250235333,-4353.27231475,0.00012573,2]
[341836541,1731250235342,-163.38905925,0.00012573,2]
[341836542,1731250235351,-1709.49,0.00012602,2]
[341836543,1731250235360,-190.52,0.00012606,2]
[341836544,1731250235369,-191.88,0.0001261,2]
[341836545,1731250235378,-191.88,0.00012673,2]
[341836546,1731250235386,-191.88,0.00012736,2]
[341836547,1731250235396,-270.33,0.00012958,2]
[341836548,1731250235405,-426.22825879,0.000132,2]
[341836549,1731250235414,-166.26463667,0.0001339,2]
[341836550,1731250235423,-997.32,0.00013398,2]
[341836551,1731250235431,-1500.0,0.00013424,2]
[341836552,1731250235441,-3335.17,0.00013424,2]
[341836553,1731250235450,-1500.0,0.00013436,2]
[341836554,1731250235459,-1500.0,0.00013441,2]
[341836555,1731250235467,-1500.0,0.00013444,2]
[341836556,1731250235476,-1500.0,0.0001347,2]
[341836557,1731250235488,-1500.0,0.00013479,2]
[341836558,1731250235497,-150.0,0.00013479,2]
[341836559,1731250235506,-562.60104106,0.0001348,2]
[341836560,1731250235515,-2482.54,0.0001348,2]
[341836562,1731250235524,-2374.5048,0.00013488,2]
[341836564,1731250235533,-562.60104106,0.00013493,2]
[341836566,1731250235543,-500.7428568,0.000135,5]
[341836568,1731250235551,-399.0,0.000135,2]
[341836570,1731250235560,-1000.0,0.000135,3]
[341836572,1731250235570,-562.60104106,0.00013506,2]
[341836574,1731250235579,-562.60104106,0.00013519,2]
[341836576,1731250235587,-562.60104106,0.00013532,2]
[341836577,1731250235596,-150.0,0.00013544,2]
[341836579,1731250235606,-562.60104106,0.00013546,2]
[341836580,1731250235615,-1500.0,0.00013549,2]
[341836581,1731250235624,-562.60104106,0.00013559,2]
[341836582,1731250235634,-1500.0,0.00013559,2]
[341836583,1731250235643,-150.0,0.00013562,2]
[341836584,1731250235652,-500.0,0.00013565,2]
[341836585,1731250235661,-562.60104106,0.00013572,2]
[341836586,1731250235670,-500.0,0.00013574,2]
[341836587,1731250235679,-1000.0,0.00013578,2]
[341836588,1731250235689,-1000.0,0.00013578,2]
[341836589,1731250235698,-19531.1833,0.00013579,2]
[341836590,1731250235707,-472.771,0.00013579,2]
[341836591,1731250235721,-150.0,0.00013579,2]
[341836592,1731250235731,-42431.5321,0.0001358,2]
[341836593,1731250235743,-58333.0301,0.0001358,2]
[341836594,1731250235754,-5000.0,0.0001358,2]